Cogmind - Beta 15 @@@ ROGUE MODE // 2025.09.23 @ 17:54:36 Player: IAMTRASHMAN Result: Self-destructed Performance ------------- Evolutions (1) 500 Regions Visited (6) 1200 Robots Destroyed (85) 425 Value Destroyed (1754) 1754 Prototype IDs (3) 60 Alien Tech Used (0) 0 Bonus (0) 0 TOTAL SCORE: 3939 Bonus ------- None Cogmind --------- Core Integrity 199/400 Matter 292/300 Energy 280/280 System Corruption 6% Temperature Cool (54) Movement Treading (160) Location -8/Mines Parts ------- > --- POWER (1) -------- Cooled Ion Engine > --- PROPULSION (3) --- Light Treads (fused) Light Treads Improved Treads > --- UTILITY (3) ------ Improved Heat Sink High-capacity Storage Unit Light Armor Plating > --- WEAPON (2) ------- Heavy Particle Cannon Improved Light Cannon > --- INVENTORY (20) --- Cooled Ion Engine Light Treads VSS Leg VSS Leg VSS Leg VSS Leg Compact Wheel Cooling System High-capacity Matter Pod (200) Seismic Detector Hacking Suite Heavy Particle Cannon Heavy Particle Cannon Heavy Particle Cannon Improved Light Cannon Improved Light Cannon Improved Grenade Launcher Improved Grenade Launcher Peak State ------------ > --- POWER ------------ Cooled Ion Engine > --- PROPULSION ------- Light Treads Light Treads Improved Treads > --- UTILITY ---------- Improved Heat Sink High-capacity Storage Unit Light Armor Plating > --- WEAPON ----------- Heavy Particle Cannon Improved Light Cannon > --- INVENTORY -------- Cooled Ion Engine Light Treads VSS Leg VSS Leg VSS Leg VSS Leg Compact Wheel Heat Sink Cooling System High-capacity Matter Pod Seismic Detector Hacking Suite Heavy Particle Cannon Heavy Particle Cannon Heavy Particle Cannon Improved Light Cannon Improved Light Cannon Improved Grenade Launcher Improved Grenade Launcher [Rating: 21] Favorites ----------- Power Cooled Ion Engine Engine Cooled Ion Engine Power Core Light Nuclear Core Propulsion Light Treads Treads Light Treads Leg Aluminum Leg Wheel Wheel Utility Transport Network Coupler Device Heat Sink Storage Large Storage Unit Processor Transport Network Coupler Protection Light Armor Plating Weapon Light Cannon Energy Gun Medium Laser Energy Cannon Beam Cannon Ballistic Cannon Light Cannon Launcher Improved Grenade Launcher Build | -11 -10 -10 -9 -9 -9 -8 ------- Run | Yrd Mat Min Mat Min Exi Min Slots Evolved 2 | . . . 2 . . . Power . | . . . . . . . Propulsion 1 | . . . 1 . . . Utility 1 | . . . 1 . . . Weapon . | . . . . . . . Parts Attached 58 | 7 17 . 25 6 . 3 Power 6 | 1 3 . 2 . . . Engine 5 | 1 2 . 2 . . . Core 1 | . 1 . . . . . Reactor . | . . . . . . . Propulsion 21 | 2 6 . 10 2 . 1 Treads 13 | . 2 . 8 2 . 1 Leg 2 | 2 . . . . . . Wheel 6 | . 4 . 2 . . . Hover . | . . . . . . . Flight . | . . . . . . . Utility 14 | 2 2 . 6 2 . 2 Device 8 | 1 1 . 4 1 . 1 Storage 3 | 1 1 . 1 . . . Processor 1 | . . . 1 . . . Hackware . | . . . . . . . Protection 2 | . . . . 1 . 1 Artifact . | . . . . . . . Weapon 17 | 2 6 . 7 2 . . Energy Gun 4 | 2 1 . 1 . . . Energy Cannon 6 | . 2 . 3 1 . . Ballistic Gun . | . . . . . . . Ballistic Cannon 4 | . 2 . 2 . . . Launcher 3 | . 1 . 1 1 . . Special Weapon . | . . . . . . . Impact Weapon . | . . . . . . . Slashing Weapon . | . . . . . . . Piercing Weapon . | . . . . . . . Special Melee Weapon . | . . . . . . . Unidentified Prototypes 3 | . . . 3 . . . Parts Lost 3 | . . . 1 . . 2 Power . | . . . . . . . Propulsion 1 | . . . . . . 1 Utility 2 | . . . 1 . . 1 Weapon . | . . . . . . . Highest Loss Streak 2 | . . . 1 . . 2 To Critical Strikes 1 | . . . . . . 1 Average Backups 16 | 3 13 15 16 20 20 18 Power 1 | . 1 1 1 1 1 1 Propulsion 4 | 2 3 4 4 7 7 6 Utility 4 | . 4 5 4 5 5 4 Weapon 5 | . 4 5 5 7 7 7 Tool/Special . | . . . . . . . Unused Backups 15 | . 2 . 5 . . 8 Power 3 | . 1 . 1 . . 1 Propulsion 1 | . . . . . . 1 Utility 4 | . . . 2 . . 2 Weapon 7 | . 1 . 2 . . 4 Tool/Special . | . . . . . . . Average Slot Usage (%) 96 | . 99 100 96 99 80 97 Engine 9 | . 10 . 8 11 11 11 Core 2 | . 3 14 2 . . . Treads 23 | . 14 14 24 33 33 31 Leg 1 | . 4 . . . . . Wheel 5 | . 9 14 7 . . . Device 11 | . 14 14 10 10 11 11 Storage 12 | . 14 14 11 11 11 11 Processor 6 | . . . 9 11 11 1 Energy Cannon 8 | . 8 14 10 10 1 11 Ballistic Cannon 12 | . 16 14 10 11 1 11 Peak Build Rating 21 | 7 12 12 18 19 18 21 Average Rating 13 | 4 9 12 14 18 13 20 On Entrance 12 | . 7 12 12 18 18 18 Naked Turns . | . . . . . . . Heaviest Build 62 | 12 32 32 59 60 59 62 Greatest Support 63 | 20 40 10 60 60 60 63 Greatest Overweight (x) 3 | . 3 3 3 . . . Average Overweight (x) . | . . 3 . . . . Largest Inventory Capacity 20 | 8 15 15 20 20 20 20 Average Capacity 16 | 6 14 15 16 20 20 20 Most Carried 20 | 6 15 15 20 20 20 20 Average Carried 16 | 3 13 15 16 20 20 18 Final Capacity 20 | 8 15 15 20 20 20 20 Final Carried 20 | 6 15 15 20 20 20 18 Class Distribution -------------------- 54% | Scavenger-Mutant 45% | Mutant Dominant Class ---------------- Mutant | -10/Materials Mutant | -10/Mines Scavenger-Mutant | -9/Materials Scavenger-Mutant | -9/Mines Scavenger-Mutant | -9/Exiles Mutant | -8/Mines Resources | -11 -10 -10 -9 -9 -9 -8 ----------- Run | Yrd Mat Min Mat Min Exi Min Matter Collected 2100 | 211 657 . 942 179 . 111 Remotely . | . . . . . . . Salvage Created 2527 | 52 770 . 1292 169 . 244 Parts 168 | 3 52 . 77 26 . 10 Haulers Intercepted 6 | . 2 . 4 . . . Recyclers Shooed 2 | . 1 . 1 . . . Parts Field Recycled . | . . . . . . . Retrieved Matter . | . . . . . . . Parts Self-Destructed . | . . . . . . . Prevented . | . . . . . . . Kills | -11 -10 -10 -9 -9 -9 -8 ------- Run | Yrd Mat Min Mat Min Exi Min Combat Hostiles Destroyed 49 | . 10 . 23 10 . 6 Cannons 34 | . 7 . 17 7 . 3 AOE 15 | . 3 . 6 3 . 3 Classes Destroyed 12 | 1 8 . 1 . . 2 Worker 4 | . 3 . 1 . . . Builder 5 | . 2 . 2 1 . . Tunneler 2 | 2 . . . . . . Hauler 6 | . 2 . 4 . . . Recycler 10 | . 5 . 5 . . . Operator 3 | . 2 . 1 . . . Watcher 6 | . 2 . 4 . . . Swarmer 19 | . 3 . 7 9 . . Grunt 22 | . 7 . 11 . . 4 Brawler 1 | . . . . . . 1 Duelist 1 | . . . . . . 1 Sentry 6 | . . . 5 1 . . Best Kill Streak 12 | 2 6 . 12 3 . 3 Combat Bots Only 5 | . 5 . 5 3 . 3 Max Kills in Single Turn 4 | 1 4 . 2 3 . 3 Gunslinging . | . . . . . . . Exploded 3 | . 3 . 2 3 . 3 Melee . | . . . . . . . Uniques/NPCs Destroyed . | . . . . . . . Combat | -11 -10 -10 -9 -9 -9 -8 -------- Run | Yrd Mat Min Mat Min Exi Min Hostile Shots Fired 202 | . 47 . 102 26 . 27 Missed 60 | . 12 . 34 10 . 4 Hits 142 | . 35 . 68 16 . 23 Melee 5 | . . . . . . 5 Projectile 137 | . 35 . 68 16 . 18 Critical Strikes 4 | . . . . 1 . 3 Damage Taken 1914 | . 507 . 783 155 . 469 Core 287 | . 86 . 119 26 . 56 Absorbed by Shields . | . . . . . . . Regen/Repaired (Parts) 240 | . 238 . 2 . . . Core Remaining (%) 82 | 100 . 65 . . . . Volleys Fired 164 | 6 56 . 75 15 . 12 Largest 2 | 2 2 . 2 2 . 2 Hottest 108 | 90 90 . 108 108 . 108 Shots Fired 307 | 12 98 . 143 31 . 23 Gun 12 | 12 . . . . . . Cannon 287 | . 97 . 137 30 . 23 Launcher 8 | . 1 . 6 1 . . Special . | . . . . . . . Kinetic 171 | . 78 . 68 14 . 11 Thermal 128 | 12 19 . 69 16 . 12 Explosive 8 | . 1 . 6 1 . . Electromagnetic . | . . . . . . . Robot Hit Streak 17 | 3 8 . 17 10 . 4 Robot Miss Streak 5 | 2 3 . 5 2 . 2 Penetration Max . | . . . . . . . Secondary Targets . | . . . . . . . Shots Hit Robots 187 | 7 58 . 92 17 . 13 Core Hits 101 | 2 28 . 49 11 . 11 Critical Kills . | . . . . . . . Critical Parts Destroyed . | . . . . . . . Critical Strikes 10 | . 5 . 3 2 . . Blast 10 | . 5 . 3 2 . . Melee Attacks . | . . . . . . . Impact . | . . . . . . . Slashing . | . . . . . . . Piercing . | . . . . . . . Sneak Attacks . | . . . . . . . Combat Hostiles . | . . . . . . . Follow-up Attacks . | . . . . . . . Damage Inflicted 4555 | 80 1252 . 2208 501 . 514 Guns 80 | 80 . . . . . . Cannons 3363 | . 1023 . 1629 371 . 340 Explosions 1090 | . 229 . 569 118 . 174 Melee . | . . . . . . . Ramming 22 | . . . 10 12 . . Kinetic 1937 | . 834 . 817 121 . 165 Thermal 1680 | 80 189 . 812 250 . 349 Explosive 916 | . 229 . 569 118 . . Electromagnetic . | . . . . . . . Impact . | . . . . . . . Slashing . | . . . . . . . Piercing . | . . . . . . . Highest Corruption 6 | . 5 5 2 2 2 6 Average Corruption 2 | . 4 5 2 2 2 5 Corruption Purged . | . . . . . . . Corruption Blocked . | . . . . . . . Effects 38 | . 14 1 2 10 7 4 Message Errors 7 | . 3 . . 3 . 1 Matter Fused 7 | . 1 . 1 . 3 2 Heat Flow Errors 6 | . 4 . . 1 . 1 Energy Discharges 5 | . 1 . 1 1 2 . Parts Fused 2 | . . 1 . 1 . . Data Loss (minor) 7 | . 3 . . 2 2 . Data Loss (major) 1 | . 1 . . . . . Misfires 3 | . 1 . . 2 . . Overload Shots . | . . . . . . . Overflow Damage 42 | . 24 . 10 8 . . Projectiles 17 | . 2 . 7 8 . . Explosions 25 | . 22 . 3 . . . Melee . | . . . . . . . Knockbacks 18 | . 13 . 4 1 . . Impact . | . . . . . . . Kinetic 17 | . 12 . 4 1 . . Secondary 1 | . 1 . . . . . Self-Inflicted Damage 164 | . 139 . . . . 25 Shots 5 | . 4 . . . . 1 Rammed 3 | . . . 1 2 . . Targets Rammed 3 | . . . 1 2 . . Kicked . | . . . . . . . Crushed . | . . . . . . . Highest Temperature 221 | 90 221 . 48 118 . 153 Average Temperature 48 | 33 67 . 11 27 . 76 Received Heat Transfer 615 | . 138 . 288 9 . 180 Siege Activations . | . . . . . . . Martial Activations . | . . . . . . . Shielding Activations . | . . . . . . . Robots Disrupted . | . . . . . . . Combat Hostiles . | . . . . . . . Robots Corrupted . | . . . . . . . Combat Hostiles . | . . . . . . . Parts Fried . | . . . . . . . Impact Corruptions 1 | . . . . 1 . . Robots Melted . | . . . . . . . Combat Hostiles . | . . . . . . . Parts Melted 1 | . . . 1 . . . Heat Transferred 3100 | 199 407 . 1665 370 . 459 Parts Sabotaged . | . . . . . . . Parts Stolen . | . . . . . . . Parts Stripped . | . . . . . . . Power Chain Reactions 1 | . 1 . . . . . Alert | -11 -10 -10 -9 -9 -9 -8 ------- Run | Yrd Mat Min Mat Min Exi Min Maximum Alert Level 1 | . . . 1 . . . Low Security (%) 80 | 100 100 100 38 100 . 100 Level 1 19 | . . . 61 . . . Level 2 . | . . . . . . . Level 3 . | . . . . . . . Level 4 . | . . . . . . . Level 5 . | . . . . . . . High Security . | . . . . . . . Max Security . | . . . . . . . Peak Influence 368 | 10 156 23 368 158 . 195 Initial 122 | . . 23 4 122 . . Average 118 | . 62 19 221 90 . 99 Influence Increases 1758 | 10 447 . 771 283 . 247 Destroy 0b10 Robot/C 980 | . 200 . 460 200 . 120 Destroy 0b10 Robot/NC 180 | 10 80 . 85 5 . . Destroy Leader 234 | . 58 . 126 30 . 20 Successful Hack 60 | . 51 . 9 . . . Disable Machine 150 | . 45 . . 15 . 90 Destroy Structure 94 | . 13 . 31 33 . 17 Lose Combat Pursuer 60 | . . . 60 . . . Influence Decreases 1592 | 10 386 48 470 542 55 81 Entered New Map 294 | . . 38 9 192 55 . Time Decay 1287 | 10 386 10 451 350 . 80 Lost Part 11 | . . . 10 . . 1 Squads Dispatched 3 | . 2 . 1 . . . Investigation . | . . . . . . . Extermination . | . . . . . . . Reinforcement 3 | . 2 . 1 . . . Assault . | . . . . . . . Garrison . | . . . . . . . Intercept . | . . . . . . . Searches Triggered . | . . . . . . . Construction Impeded . | . . . . . . . Haulers Reinforced . | . . . . . . . Active Scanning Responses . | . . . . . . . Cargo Convoy Interrupts . | . . . . . . . Stealth | -11 -10 -10 -9 -9 -9 -8 --------- Run | Yrd Mat Min Mat Min Exi Min Distress Signals 9 | . 3 . 6 . . . Communications Jammed . | . . . . . . . Distress Signals . | . . . . . . . Times Spotted 76 | . 21 . 35 11 . 9 Peak Tracking Total 7 | . 7 . 6 3 . 3 Tactical Retreats 3 | . . . 3 . . . Traps | -11 -10 -10 -9 -9 -9 -8 ------- Run | Yrd Mat Min Mat Min Exi Min Traps Triggered 2 | . 1 . 1 . . . Indirectly . | . . . . . . . Trap Hack Attempts . | . . . . . . . Triggered . | . . . . . . . Disarmed . | . . . . . . . Reprogrammed . | . . . . . . . Reused . | . . . . . . . Traps Extracted . | . . . . . . . Installed . | . . . . . . . Triggered . | . . . . . . . Machines | -11 -10 -10 -9 -9 -9 -8 ---------- Run | Yrd Mat Min Mat Min Exi Min Machines Disabled 11 | . 4 . . 1 . 6 Max in Single Turn 6 | . 3 . . 1 . 6 Machines Repaired . | . . . . . . . Machines Dismantled . | . . . . . . . Machines Sabotaged . | . . . . . . . Overloaded Fab Kills . | . . . . . . . Hacking | -11 -10 -10 -9 -9 -9 -8 --------- Run | Yrd Mat Min Mat Min Exi Min Machines Accessed 14 | . 7 . 6 . 1 . Terminals 11 | . 6 . 5 . . . Fabricators . | . . . . . . . Repair Stations 2 | . 1 . 1 . . . Recycling Units . | . . . . . . . Scanalyzers . | . . . . . . . Garrison Access . | . . . . . . . Total Hacks 37 | . 23 . 13 . 1 . Successful 24 | . 17 . 6 . 1 . Failed 13 | . 6 . 7 . . . Catastrophic 1 | . 1 . . . . . Database Lockouts . | . . . . . . . Manual 18 | . 9 . 9 . . . Terminals 28 | . 17 . 11 . . . Fabricators . | . . . . . . . Repair Stations 8 | . 6 . 2 . . . Recycling Units . | . . . . . . . Scanalyzers . | . . . . . . . Garrison Access . | . . . . . . . Terminal Hacks 9 | . 7 . 1 . 1 . Record 1 | . . . . . 1 . Terminal Index 1 | . 1 . . . . . Locate Traps 3 | . 3 . . . . . Hauler Manifests 2 | . 1 . 1 . . . Registered Components 1 | . 1 . . . . . Zone Layout 1 | . 1 . . . . . Fabricator Hacks . | . . . . . . . Repair Station Hacks 8 | . 6 . 2 . . . Scan Component 4 | . 3 . 1 . . . Repair 4 | . 3 . 1 . . . Recycling Unit Hacks . | . . . . . . . Scanalyzer . | . . . . . . . Garrison Access Hacks . | . . . . . . . Unauthorized Hacks 7 | . 4 . 3 . . . Terminals 7 | . 4 . 3 . . . Botnet 6 | . 3 . 3 . . . Operators 1 | . 1 . . . . . Fabricators . | . . . . . . . Repair Stations . | . . . . . . . Recycling Units . | . . . . . . . Scanalyzers . | . . . . . . . Garrison Access . | . . . . . . . Data Cores Recovered . | . . . . . . . Used . | . . . . . . . Hacking Detections 12 | . 6 . 6 . . . Full Trace Events . | . . . . . . . Feedback Events . | . . . . . . . Feedback Blocked . | . . . . . . . Robot Schematics Acquired . | . . . . . . . Robots Built . | . . . . . . . Authchips . | . . . . . . . Time . | . . . . . . . Total Robot Build Rating . | . . . . . . . Part Schematics Acquired . | . . . . . . . Parts Built . | . . . . . . . Authchips . | . . . . . . . Time . | . . . . . . . Total Part Build Rating . | . . . . . . . Parts Repaired 4 | . 3 . 1 . . . Time 116 | . 78 . 38 . . . Parts Recycled . | . . . . . . . Recycled Matter . | . . . . . . . Retrieved Matter . | . . . . . . . Retrieved Components . | . . . . . . . Parts Scanalyzed . | . . . . . . . Part Schematics Acquired . | . . . . . . . Parts Damaged . | . . . . . . . Bothacking | -11 -10 -10 -9 -9 -9 -8 ------------ Run | Yrd Mat Min Mat Min Exi Min Used RIF Installer . | . . . . . . . Robots Hacked . | . . . . . . . Non-combat . | . . . . . . . Combat . | . . . . . . . Robot Hacks Applied . | . . . . . . . Relay Couplers Released . | . . . . . . . Fabnet Peak Effective % . | . . . . . . . Robots Rewired . | . . . . . . . Allies Hacked . | . . . . . . . Hacks Repelled . | . . . . . . . Allies | -11 -10 -10 -9 -9 -9 -8 -------- Run | Yrd Mat Min Mat Min Exi Min Total Allies . | . . . . . . . Largest Group . | . . . . . . . Highest-Rated Group . | . . . . . . . Highest-Rated Ally . | . . . . . . . Total Orders . | . . . . . . . Ally Attacks . | . . . . . . . Total Damage . | . . . . . . . Kills . | . . . . . . . Allies Corrupted . | . . . . . . . Allies Melted . | . . . . . . . Intel | -11 -10 -10 -9 -9 -9 -8 ------- Run | Yrd Mat Min Mat Min Exi Min Active Infowar (turns) 2783 | 9 611 . 975 785 388 15 Terrain 2 | . . . 2 . . . Traps 2 | . . . 2 . . . Seismic 629 | 9 611 . 9 . . . T.N.C. 2154 | . . . 966 785 388 15 Robot Analysis Total . | . . . . . . . Derelict Logs Recovered 1 | . . . . 1 . . Drone Launches . | . . . . . . . Drone Recoveries . | . . . . . . . Exploration | -11 -10 -10 -9 -9 -9 -8 ------------- Run | Yrd Mat Min Mat Min Exi Min Turns Passed 3957 | 91 1368 28 1122 785 388 175 Spaces Moved 2105 | 50 728 23 523 455 241 85 Core 4 | 4 . . . . . . Treads 1349 | . 243 . 325 455 241 85 Legs 184 | 46 138 . . . . . Wheels 568 | . 347 23 198 . . . Hover . | . . . . . . . Flight . | . . . . . . . Fastest Speed 50 | 50 110 125 95 160 160 160 Average Speed 148 | 114 146 125 138 160 160 160 Slowest Speed 240 | 120 240 125 240 160 160 160 Overloaded Moves . | . . . . . . . Propulsion Burnouts . | . . . . . . . Robots Hopped . | . . . . . . . Potential Cave-ins . | . . . . . . . Cave-ins Triggered . | . . . . . . . Exploration Rate (%) 41 | 5 93 13 43 69 46 21 Regions Visited 6 Branch Regions 4 Pre-discovered Areas 2 | . . . . 1 1 . Known Exits Taken . | . . . . . . . Unknown Exits Taken 6 | 1 1 1 1 1 1 . Scrap Searched 3 | . . . . 3 . . Spaces Dug . | . . . . . . . Terrain Destroyed 96 | . 10 . 35 33 . 18 Melee . | . . . . . . . Projectile 12 | . . . . 7 . 5 AOE 84 | . 10 . 35 26 . 13 Terrain Rammed . | . . . . . . . Walls Destroyed . | . . . . . . . Machines Disabled . | . . . . . . . Actions | -11 -10 -10 -9 -9 -9 -8 --------- Run | Yrd Mat Min Mat Min Exi Min Total 2636 | 68 932 22 787 482 244 101 Wait 193 | . 95 . 98 . . . Move 2099 | 49 727 22 522 454 240 85 Hop . | . . . . . . . Pick Up 44 | 6 15 . 23 . . . Fast Attach 34 | 7 11 . 12 2 2 . Attach 4 | . . . 2 . . 2 Detach 8 | . 2 . 6 . . . Swap 33 | . 10 . 17 5 . 1 Drop 54 | . 16 . 31 4 2 1 Fire 164 | 6 56 . 75 15 . 12 Melee . | . . . . . . . Ram . | . . . . . . . Kick . | . . . . . . . Crush 3 | . . . 1 2 . . Escape Stasis . | . . . . . . . Rewire . | . . . . . . . Trap . | . . . . . . . Miscellaneous . | . . . . . . . Route ------- -11/Scrapyard -10/Materials (discovered 4 exits: *Mat x3 / [*Min]) -10/Mines -9/Materials (discovered 2 exits: [*Mat] / [*Min]) -9/Mines (discovered 3 exits: [*Mat x2] / *Exi) -9/Exiles -8/Mines History --------- Turn | Location | Event 5 | -11/Scrapyard | Discovered new exit (range 15) 92 | -11/Scrapyard | Entered Materials 237 | -10/Materials | Discovered new exit (range 9) 327 | -10/Materials | Build established: Mutant 644 | -10/Materials | Discovered new exit (range 11) 750 | -10/Materials | Discovered new exit (range 16) 1132 | -10/Materials | Repaired Lgt. Treads 1164 | -10/Materials | Repaired Lgt. Cannon 1192 | -10/Materials | Repaired Beam Cannon 1261 | -10/Materials | Discovered new exit (range 16) 1460 | -10/Materials | Entered Mines 1475 | -10/Mines | Discovered new exit (range 12) 1488 | -10/Mines | Entered Materials 1488 | -9/Materials | Evolved 2 slots: Propulsion x1, Utility x1 1860 | -9/Materials | Build established: Scavenger-Mutant 2161 | -9/Materials | Repaired Hacking Suite 2204 | -9/Materials | Discovered new exit (range 10) 2446 | -9/Materials | Discovered new exit (range 15) 2610 | -9/Materials | Entered Mines 2666 | -9/Mines | Learned Materials emergency access door positions 2719 | -9/Mines | Learned location of Storage (-8) 2814 | -9/Mines | Joined a pair of Derelicts in attacking an 0b10 outpost 3061 | -9/Mines | Discovered new exit (range 5) 3241 | -9/Mines | Discovered new exit (range 8) 3387 | -9/Mines | Deemed a non-threat by the Exiles lab entrance 3389 | -9/Mines | Discovered new exit (range 5) 3395 | -9/Mines | Entered Exiles 3417 | -9/Exiles | Discovered new exit (range 15) 3444 | -9/Exiles | Met 8R-AWN 3472 | -9/Exiles | Met EX-HEX 3569 | -9/Exiles | Met EX-BIN 3593 | -9/Exiles | Met EX-DEC 3603 | -9/Exiles | Learned location of Zion (-7) 3783 | -9/Exiles | Entered Mines 3802 | -8/Mines | Core integrity fell below 50% 3958 | -8/Mines | Self-destructed Last Messages --------------- 03833_ U-05 Engineer builds a Wall. 03856_ T-07 Excavator is excavating. 03883_ Plasma Injector explodes. 03883_ L-31 Rogue destroyed. 03883_ Plasma Injector explodes. 03883_ G-47 Trooper destroyed. 03883_ Plasma Injector explodes. 03888_ System corrupted: Heat flow error (+184). 03893_ U-05 Engineer builds a Wall. 03896_ U-05 Engineer lays Concrete. 03897_ U-05 Engineer builds a Wall. 03897_ U-05 Engineer lays Concrete. 03904_ 03905_ U-05 Engineer builds a Wall. 03906_ U-05 Engineer lays Concrete. 03919_ T-07 Excavator is excavating. 03946_ K-01 Serf collects debris. 03954_ Critical hit (Burn: +37). 03957_ K-01 Serf collects debris. Map ----- +----------------------------------------------------+ | ?????????????????????????????????????????????????? | | ?????????????????????????????????????????????????? | | ?????????????????????????????????????????????????? | | ?????????????????????????????????????????????????? | | ?????????????????????????????????????????????????? | | ?????????????????????????????????????????????????? | | ?????????????????????????????????????????????????? | | ?????????????????????????????????????????????????? | | ?????????????????????????????????????????????????? | | ?????????????????????????????????????????????????? | | ?????????????????????????????????????????????????? | | ?????????????????????????????????????????????????? | | ?????????????????????????????????????????????????? | | ?????????????????????????????????????????????????? | | ?????????????????????????????????????????????????? | | ?????????????????????????????????????????????????? | | ?????????????????????????????????????????????????? | | ?????????????????????????????????????????????????? | | ?????????????????????????????????????????????????? | | ?????????????????????????????????????????????????? | | ?????????????????????????????????????????????????? | | ?????????????????????????????????????????????????? | | ?????????????????????????????????????????????????? | | ??????????????????????????##?????????????????????? | | ????????????????????????##;#######???????????????? | | ????????????????????????#@ rggg ????????? | | ????????????????????????# ########???????????????? | | ????????????????????????# #??????????????????????? | | ????????????????######### ##?????????????????????? | | ????????????????# ##????????????????????? | | ????????????????# #????????????????????? | | ????????????????# ###### ##???????????????????? | | ????????????????# #????## ####????????????????? | | ????????????????# #????## ###???????????????? | | ????????????????# #????# ##??????????????? | | ?############???# #????# % % #??????????????? | | ##"#" """""#???# #????# k #??????????????? | | ##??# #????# % *" ##??????????????? | | ##### #???## [[%###??????????????? | | #???# % = ##????????????????? | | *[ ### ##???# =##?????????????????? | | =%% % ### #????## ##!#????????????????? | | ! ### #?????#######?##????????????????? | | #?# #???????????????????????????????? | | "# ???????????????????????????????? | | ## #??????????????????????????????? | | ## #??????????????????????????????? | | # #??????????????????????????????? | | ## ###??????????????????????????????? | | ####?????????????????????????????????? | +----------------------------------------------------+ Best States ------------- Heat Dissipation 50 Energy Generation 14 Energy Capacity 280 Matter Stores 300 Matter Capacity 300 Sight Range 16 Terrain Scan Density 10 Armor Coverage 150 Evasion (%) 55 Recoil Reduction 3 Item Schematics ----------------- None Robot Schematics ------------------ None Fabricated ------------ Nothing Repaired ---------- Lgt. Treads | 9% | -10/Materials Lgt. Cannon | 31% | -10/Materials Beam Cannon | 71% | -10/Materials Hacking Suite | 80% | -9/Materials Alien Tech Used ----------------- None Achievements -------------- None Challenges ------------ None Game ------ Seed VariableActuatorPlating Manual? 0 Play Time 00:27:13 Cumulative 241.4 hours Start 2025.09.22 @ 17:41:43 End 2025.09.23 @ 17:54:36 Sessions 3 Manual Loads 0 Difficulty Rogue Special Mode None Game No. 252 Rogue 252 Adventurer 0 Explorer 0 Win Type - Total 3 Types 3/0/0/0/0/0/0/0/0/0 Lore% 74 Gallery% 71 Achievement% 66 Wizard Run 0 Options --------- Layout 0 ASCII 0 Keyboard 1 Movement Vi Keybinds 0 Fullscreen 2 Font 18/TerminusBold Map View 76x50 Zoom Use 0% Tactical HUD 1 Map Filters NONE Filters NONE Steam X RUN: 3fcadc09-ba03-4393-943e-bcb9a1ef1ae8